fUST/lending_fUST_20240502
["ID","MTS","AMOUNT","RATE_DAILY","PERIOD"]
[325249692,1714649445691,-508.00883126,0.00043835,7]
[325249693,1714649445700,-500.0,0.00043835,7]
[325249694,1714649445709,-151.0,0.00043835,7]
[325249695,1714649445719,-151.0,0.00043835,7]
[325249696,1714649445728,-500.0,0.00043835,7]
[325249697,1714649445737,-500.0,0.00043835,7]
[325249698,1714649445746,-500.0,0.00043835,7]
[325249699,1714649445756,-500.0,0.00043835,7]
[325249700,1714649445765,-500.0,0.00043835,7]
[325249701,1714649445775,-427.66357789,0.00043835,7]
[325249702,1714649445785,-500.0,0.00043835,7]
[325249703,1714649445794,-707.66,0.00043835,7]
[325249704,1714649445803,-707.66,0.00043835,7]
[325249705,1714649445812,-500.0,0.00043835,7]
[325249706,1714649445821,-707.66,0.00043835,7]
[325249707,1714649445830,-500.0,0.00043835,7]
[325249708,1714649445840,-639.88,0.00043835,7]
[325249709,1714649445849,-707.66,0.00043835,7]
[325249710,1714649445858,-500.0,0.00043835,7]
[325249711,1714649445868,-707.66,0.00043835,7]
[325249712,1714649445877,-500.0,0.00043835,7]
[325249713,1714649445890,-500.0,0.00043835,7]
[325249714,1714649445900,-500.0,0.00043835,7]
[325249715,1714649445909,-224.29051,0.00043835,7]
[325249716,1714649445918,-500.0,0.00043835,7]
[325249717,1714649445927,-500.0,0.00043835,7]
[325249718,1714649445936,-500.0,0.00043835,7]
[325249719,1714649445947,-500.0,0.00043835,7]
[325249720,1714649445956,-500.0,0.00043835,7]
[325249721,1714649445965,-500.0,0.00043835,7]
[325249722,1714649445979,-597.05569763,0.00043835,7]
[325249723,1714649445988,-506.92338901,0.00043835,7]
[325249724,1714649445998,-540.5,0.00043835,7]
[325249725,1714649446008,-540.5,0.00043835,7]
[325249726,1714649446018,-500.0,0.00043835,7]
[325249727,1714649446028,-540.5,0.00043835,7]
[325249728,1714649446038,-500.0,0.00043835,7]
[325249729,1714649446050,-540.5,0.00043835,7]
[325249730,1714649446060,-151.0,0.00043835,7]
[325249731,1714649446071,-500.0,0.00043835,7]
[325249732,1714649446080,-540.5,0.00043835,7]
[325249733,1714649446090,-500.0,0.00043835,7]
[325249734,1714649446099,-206.01806,0.00043835,7]
[325249735,1714649446109,-540.5,0.00043835,7]
[325249736,1714649446119,-500.0,0.00043835,7]
[325249737,1714649446135,-500.0,0.00043835,7]
[325249738,1714649446149,-500.0,0.00043835,7]
[325249739,1714649446164,-500.0,0.00043835,7]
[325249740,1714649446174,-500.0,0.00043835,7]
[325249741,1714649446187,-500.0,0.00043835,7]
[325249742,1714649446200,-500.0,0.00043835,7]
[325249743,1714649446213,-500.0,0.00043835,7]
[325249744,1714649446227,-500.0,0.00043835,7]
[325249745,1714649446240,-500.0,0.00043835,7]
[325249746,1714649446255,-500.0,0.00043835,7]
[325249747,1714649446268,-500.0,0.00043835,7]
[325249748,1714649446282,-500.0,0.00043835,7]
[325249751,1714649446294,-500.0,0.00043835,7]
[325249753,1714649446306,-500.0,0.00043835,7]
[325249755,1714649446319,-500.0,0.00043835,7]
[325249759,1714649446332,-500.0,0.00043835,7]
[325249760,1714649446344,-500.0,0.00043835,7]
[325249761,1714649446356,-151.0,0.00043835,7]
[325249762,1714649446368,-151.0,0.00043835,7]
[325249763,1714649446381,-151.0,0.00043835,7]
[325249764,1714649446394,-254.548496,0.00043835,7]
[325249765,1714649446406,-151.0,0.00043835,7]
[325249766,1714649446419,-254.548496,0.00043835,7]
[325249767,1714649446433,-151.0,0.00043835,7]
[325249768,1714649446446,-254.548496,0.00043835,7]
[325249771,1714649446457,-151.0,0.00043835,7]
[325249774,1714649446467,-254.548496,0.00043835,7]
[325249776,1714649446477,-254.548496,0.00043835,7]
[325249779,1714649446489,-254.548496,0.00043835,7]
[325249782,1714649446502,-500.0,0.00043835,7]
[325249784,1714649446514,-254.548496,0.00043835,7]
[325249786,1714649446527,-254.548496,0.00043835,7]
[325249787,1714649446539,-500.0,0.00043835,7]
[325249789,1714649446550,-254.548496,0.00043835,7]
[325249790,1714649446562,-500.0,0.00043835,7]
[325249792,1714649446575,-500.0,0.00043835,7]
[325249794,1714649446586,-500.0,0.00043835,7]
[325249795,1714649446601,-548.21,0.00043835,7]
[325249798,1714649446612,-151.0,0.00043835,7]
[325249800,1714649446623,-151.0,0.00043835,7]
[325249802,1714649446637,-503.22068469,0.00043835,7]
[325249804,1714649446648,-151.0,0.00043835,7]
[325249805,1714649446661,-254.548496,0.00043835,7]
[325249806,1714649446673,-500.0,0.00043835,7]
[325249807,1714649446686,-254.548496,0.00043835,7]
[325249808,1714649446698,-500.0,0.00043835,7]
[325249809,1714649446709,-388.3645873,0.00043835,7]
[325249810,1714649446720,-254.548496,0.00043835,7]
[325249811,1714649446732,-500.0,0.00043835,7]
[325249812,1714649446744,-502.12206867,0.00043835,7]
[325249813,1714649446755,-151.0,0.00043835,7]
[325249814,1714649446767,-500.0,0.00043835,7]
[325249816,1714649446778,-302.048218,0.00043835,7]
[325249817,1714649446789,-153.091258,0.00043835,7]
[325249818,1714649446800,-530.87,0.00043835,7]
[325249819,1714649446812,-151.0,0.00043835,7]
[325249820,1714649446823,-151.0,0.00043835,7]
[325249821,1714649446835,-500.0,0.00043835,7]
[325249822,1714649446846,-151.0,0.00043835,7]
[325249823,1714649446857,-501.81711554,0.00043835,7]
[325249824,1714649446868,-500.0,0.00043835,7]
[325249825,1714649446880,-500.0,0.00043835,7]
[325249826,1714649446892,-500.0,0.00043835,7]
[325249827,1714649446904,-500.0,0.00043835,7]
[325249828,1714649446915,-151.0,0.00043835,7]
[325249829,1714649446927,-500.0,0.00043835,7]
[325249830,1714649446938,-500.0,0.00043835,7]
[325249831,1714649446951,-500.0,0.00043835,7]
[325249832,1714649446965,-500.0,0.00043835,7]
[325249833,1714649446977,-350.63874145,0.00043835,7]
[325249834,1714649446989,-151.0,0.00043835,7]
[325249835,1714649447000,-500.0,0.00043835,7]
[325249836,1714649447012,-500.0,0.00043835,7]
[325249837,1714649447023,-151.0,0.00043835,7]
[325249838,1714649447033,-500.0,0.00043835,7]
[325249839,1714649447043,-151.0,0.00043835,7]
[325249840,1714649447055,-500.0,0.00043835,7]
[325249841,1714649447064,-151.0,0.00043835,7]
[325249842,1714649447074,-506.23688725,0.00043835,7]
[325249843,1714649447084,-595.13522297,0.00043835,7]
[325249844,1714649447214,-500.0,0.00043835,7]
[325249845,1714649447226,-500.0,0.00043835,7]
[325249846,1714649447237,-500.0,0.00043835,7]
[325249847,1714649447246,-500.0,0.00043835,7]
[325249848,1714649447257,-500.0,0.00043835,7]
[325249849,1714649447267,-506.46027596,0.00043835,7]
[325249850,1714649447276,-500.0,0.00043835,7]
[325249851,1714649447285,-500.0,0.00043835,7]
[325249852,1714649447294,-500.0,0.00043835,7]
[325249853,1714649447303,-500.0,0.00043835,7]
[325249854,1714649447312,-340.19593399,0.00043835,7]
[325249855,1714649447321,-500.0,0.00043835,7]
[325249856,1714649447330,-500.0,0.00043835,7]
[325249857,1714649447339,-500.0,0.00043835,7]
[325249858,1714649447349,-500.0,0.00043835,7]
[325249859,1714649447358,-500.0,0.00043835,7]
[325249860,1714649447367,-500.0,0.00043835,7]
[325249861,1714649447376,-151.0,0.00043835,7]
[325249862,1714649447386,-151.0,0.00043835,7]
[325249863,1714649447397,-151.0,0.00043835,7]
[325249864,1714649447407,-3901.62,0.00043835,7]
[325249865,1714649447415,-151.0,0.00043835,7]
[325249866,1714649447425,-3901.62,0.00043835,7]
[325249867,1714649447434,-3901.62,0.00043835,7]
[325249868,1714649447443,-3901.62,0.00043835,7]
[325249869,1714649447452,-500.0,0.00043835,7]
[325249870,1714649447461,-3901.62,0.00043835,7]
[325249871,1714649447470,-500.0,0.00043835,7]
[325249872,1714649447479,-3901.62,0.00043835,7]
[325249873,1714649447488,-500.0,0.00043835,7]
[325249874,1714649447497,-500.0,0.00043835,7]
[325249875,1714649447506,-500.0,0.00043835,7]
[325249876,1714649447514,-500.0,0.00043835,7]
[325249877,1714649447524,-500.0,0.00043835,7]
[325249878,1714649447533,-500.0,0.00043835,7]
[325249879,1714649447542,-500.0,0.00043835,7]
[325249880,1714649447551,-500.0,0.00043835,7]
[325249881,1714649447560,-500.0,0.00043835,7]
[325249882,1714649447570,-500.0,0.00043835,7]
[325249883,1714649447579,-500.0,0.00043835,7]
[325249884,1714649447588,-170.36,0.00043835,7]
[325249885,1714649447597,-500.0,0.00043835,7]
[325249886,1714649447606,-500.0,0.00043835,7]
[325249887,1714649447615,-500.0,0.00043835,7]
[325249888,1714649447625,-500.0,0.00043835,7]
[325249889,1714649447634,-235.20832503,0.00043835,7]
[325249890,1714649447643,-500.0,0.00043835,7]
[325249891,1714649447652,-352.566188,0.00043835,7]
[325249892,1714649447662,-352.566188,0.00043835,7]
[325249893,1714649447670,-352.566188,0.00043835,7]
[325249894,1714649447679,-352.566188,0.00043835,7]
[325249895,1714649447688,-352.566188,0.00043835,7]
[325249896,1714649447698,-500.0,0.00043835,7]
[325249897,1714649447707,-500.0,0.00043835,7]
[325249898,1714649447718,-352.566188,0.00043835,7]
[325249899,1714649447728,-500.0,0.00043835,7]
[325249900,1714649447738,-352.566188,0.00043835,7]
[325249901,1714649447748,-500.0,0.00043835,7]
[325249902,1714649447757,-352.566188,0.00043835,7]
[325249903,1714649447766,-500.0,0.00043835,7]
[325249904,1714649447775,-352.566188,0.00043835,7]
[325249905,1714649447784,-500.0,0.00043835,7]
[325249906,1714649447794,-352.566188,0.00043835,7]
[325249907,1714649447803,-352.566188,0.00043835,7]
[325249908,1714649447812,-352.566188,0.00043835,7]
[325249909,1714649447822,-352.566188,0.00043835,7]
[325249910,1714649447831,-378.07159443,0.00043835,7]
[325249911,1714649447840,-352.566188,0.00043835,7]
[325249912,1714649447849,-352.566188,0.00043835,7]
[325249913,1714649447858,-352.566188,0.00043835,7]
[325249914,1714649447867,-352.566188,0.00043835,7]
[325249915,1714649447876,-352.566188,0.00043835,7]
[325249916,1714649447887,-151.0,0.00043835,7]
[325249917,1714649447896,-3901.62,0.00043899,7]
[325249918,1714649447906,-23477.90251468,0.000439,5]
[325249921,1714649448258,-1084.58,0.00043825,30]
[325249922,1714649448268,-151.0,0.00043835,7]
[325249923,1714649448277,-151.0,0.00043835,7]
[325249924,1714649448286,-151.0,0.00043835,7]
[325249925,1714649448295,-151.0,0.00043835,7]
[325249926,1714649448304,-151.0,0.00043835,7]
[325249927,1714649448314,-151.0,0.00043835,7]
[325249928,1714649448323,-151.0,0.00043835,7]
[325249929,1714649448333,-151.0,0.00043835,7]
[325249930,1714649448343,-32077.09748532,0.000439,5]
[325249931,1714649448352,-540.9191042,0.000439,2]
[325249932,1714649448361,-151.0,0.000439,7]
[325249933,1714649448371,-151.0,0.000439,7]
[325249934,1714649448380,-151.0,0.000439,7]
[325249935,1714649448391,-151.0,0.000439,7]
[325249936,1714649448402,-151.0,0.000439,7]
[325249937,1714649448411,-3407.41498,0.000439,7]
[325249938,1714649448420,-3407.41498,0.000439,7]
[325249939,1714649448430,-151.0,0.000439,7]
[325249940,1714649448439,-168.036439,0.000439,7]
[325249941,1714649448448,-168.036439,0.000439,7]
[325249942,1714649448457,-151.0,0.000439,7]
[325249943,1714649448466,-151.0,0.000439,7]
[325249944,1714649448475,-151.0,0.000439,7]
[325249945,1714649448484,-217.002482,0.000439,7]
[325249946,1714649448493,-151.0,0.000439,7]
[325249947,1714649448502,-254.548496,0.000439,7]
[325249948,1714649448511,-254.548496,0.000439,7]
[325249949,1714649448520,-352.566188,0.000439,7]
[325249950,1714649448529,-352.566188,0.000439,7]
[325249951,1714649448538,-151.0,0.000439,7]
[325249952,1714649448548,-500.0,0.00043999,7]
[325249953,1714649448557,-975.95,0.00043999,7]
[325249954,1714649448566,-500.0,0.00043999,7]
[325249955,1714649448575,-975.95,0.00043999,7]
[325249956,1714649448585,-320.63145904,0.00043999,7]
[325249957,1714649448595,-500.0,0.00043999,7]
[325249958,1714649448604,-500.0,0.00043999,7]
[325249959,1714649448613,-643.29,0.00043999,7]
[325249960,1714649448623,-643.29,0.00043999,7]
[325249961,1714649448632,-643.29,0.00043999,7]
[325249962,1714649448642,-947.25,0.00043999,7]
[325249963,1714649448651,-947.25,0.00043999,7]
[325249964,1714649448660,-500.0,0.00043999,7]
[325249965,1714649448670,-356.47711004,0.00043999,7]
[325249966,1714649448679,-500.0,0.00043999,7]
[325249967,1714649448688,-500.0,0.00043999,7]
[325249968,1714649448698,-500.0,0.00043999,7]
[325249969,1714649448706,-500.0,0.00043999,7]
[325249970,1714649448716,-500.0,0.00043999,7]
[325249971,1714649448725,-1246.13,0.00043999,7]
[325249972,1714649448734,-1246.13,0.00043999,7]
[325249973,1714649448743,-1246.13,0.00043999,7]
[325249974,1714649448752,-1290.87,0.00043999,7]
[325249975,1714649448762,-1290.87,0.00043999,7]
[325249976,1714649448771,-1290.87,0.00043999,7]
[325249977,1714649448780,-2258.88,0.00043999,7]
[325249978,1714649448790,-1116.37,0.00043999,7]
[325249979,1714649448799,-1116.37,0.00043999,7]
[325249980,1714649448808,-1116.37,0.00043999,7]
[325249981,1714649448818,-2258.88,0.00043999,7]
[325249982,1714649448827,-500.0,0.00043999,2]
[325249983,1714649448837,-500.0,0.00043999,2]
[325249984,1714649448846,-2009.93,0.00043999,7]
[325249985,1714649448855,-500.0,0.00043999,2]
[325249986,1714649448865,-2009.93,0.00043999,7]
[325249987,1714649448875,-1000.0,0.00043999,120]
[325249988,1714649448884,-1000.0,0.00043999,120]
[325249989,1714649448894,-1000.0,0.00043999,120]
[325249990,1714649448903,-500.0,0.00043999,7]
[325249991,1714649448912,-500.0,0.00043999,7]
[325249992,1714649448921,-500.0,0.00043999,7]
[325249993,1714649448931,-500.0,0.00043999,7]
[325249994,1714649448940,-500.0,0.00043999,7]
[325249995,1714649448950,-500.0,0.00043999,7]
[325249996,1714649448959,-500.0,0.00043999,7]
[325249997,1714649448969,-189.34228102,0.00043999,7]
[325249998,1714649448980,-2395.29,0.00043999,7]
[325249999,1714649448991,-2395.29,0.00043999,7]
[325250000,1714649449000,-1370.18,0.00043999,7]
[325250001,1714649449010,-2330.83,0.00043999,7]
[325250002,1714649449019,-1370.18,0.00043999,7]
[325250003,1714649449028,-2330.83,0.00043999,7]
[325250004,1714649449037,-2330.83,0.00043999,7]
[325250005,1714649449047,-1028.34,0.00043999,7]
[325250006,1714649449056,-1028.34,0.00043999,7]
[325250007,1714649449066,-1028.34,0.00043999,7]
[325250008,1714649449075,-500.0,0.00043999,7]
[325250009,1714649449084,-500.0,0.00043999,7]
[325250010,1714649449094,-500.0,0.00043999,7]
[325250011,1714649449103,-833.14,0.00043999,7]
[325250012,1714649449112,-833.14,0.00043999,7]
[325250013,1714649449121,-833.14,0.00043999,7]
[325250014,1714649449131,-644.99,0.00043999,7]
[325250015,1714649449141,-644.99,0.00043999,7]
[325250016,1714649449150,-658.45,0.00043999,7]
[325250017,1714649449159,-658.45,0.00043999,7]
[325250018,1714649449169,-500.0,0.00043999,7]
[325250019,1714649449178,-500.0,0.00043999,7]
[325250020,1714649449187,-500.0,0.00043999,7]
[325250021,1714649449198,-3091.23,0.00043999,7]
[325250022,1714649449212,-3091.23,0.00043999,7]
[325250023,1714649449221,-3091.23,0.00043999,7]
[325250024,1714649449231,-500.0,0.00043999,7]
[325250025,1714649449243,-500.0,0.00043999,7]
[325250026,1714649449252,-500.0,0.00043999,7]
[325250027,1714649449346,-707.66,0.00043999,7]
[325250028,1714649449356,-707.66,0.00043999,7]
[325250029,1714649449366,-707.66,0.00043999,7]
[325250030,1714649449375,-500.0,0.00043999,7]
[325250031,1714649449386,-500.0,0.00043999,7]
[325250032,1714649449397,-403.15792712,0.00043999,7]
[325250033,1714649449407,-540.5,0.00043999,7]
[325250034,1714649449416,-540.5,0.00043999,7]
[325250035,1714649449426,-500.0,0.00043999,7]
[325250036,1714649449435,-540.5,0.00043999,7]
[325250037,1714649449444,-500.0,0.00043999,7]
[325250038,1714649449454,-500.0,0.00043999,7]
[325250039,1714649449464,-223.96066961,0.00043999,7]
[325250040,1714649449473,-500.0,0.00043999,7]
[325250041,1714649449483,-500.0,0.00043999,7]
[325250042,1714649449492,-500.0,0.00043999,7]
[325250043,1714649449501,-151.0,0.00043999,7]
[325250044,1714649449510,-151.0,0.00043999,7]
[325250045,1714649449519,-254.548496,0.00043999,7]
[325250046,1714649449528,-254.548496,0.00043999,7]
[325250047,1714649449538,-254.548496,0.00043999,7]
[325250048,1714649449546,-254.548496,0.00043999,7]
[325250049,1714649449556,-525.59378121,0.00043999,7]
[325250050,1714649449565,-3901.62,0.00043999,7]
[325250051,1714649449574,-3901.62,0.00043999,7]
[325250052,1714649449584,-3901.62,0.00043999,7]
[325250053,1714649449592,-500.0,0.00043999,7]
[325250054,1714649449602,-500.0,0.00043999,7]
[325250055,1714649449611,-500.0,0.00043999,7]
[325250056,1714649449620,-500.0,0.00043999,7]
[325250057,1714649449629,-500.0,0.00043999,7]
[325250058,1714649449639,-500.0,0.00043999,7]
[325250059,1714649449648,-444.0,0.00044,120]
[325250060,1714649449658,-400.0,0.00044,120]
[325250061,1714649449667,-17165.42970445,0.00044,2]
[325250062,1714649465536,223.97792197,0.000189,2]
[325250063,1714649487559,223.97792197,0.000189,2]
[325250064,1714649505545,223.97792197,0.000189,2]
[325250065,1714649526156,5939.62617792,0.0002,2]
[325250066,1714649527563,357.67683509,0.000189,2]
[325250067,1714649530400,215.34141128,0.0002,2]
[325250068,1714649530599,123106.86543071,0.0002,2]
[325250069,1714649533574,154.88410251,0.0002,2]
[325250071,1714650244982,25616.46760596,0.00020913,2]
[325250072,1714650370112,564.74790633,0.000189,2]
[325250131,1714650631933,-200.0,0.00021633,2]
[325250134,1714650631942,-366.080876,0.00021902,2]
[325250137,1714650631952,-166.666666,0.00021918,2]
[325250140,1714650631961,-10000.0,0.00021918,2]
[325250142,1714650631971,-2000.0,0.00022,2]
[325250144,1714650631980,-24900.0,0.00022619,2]
[325250146,1714650631989,-199.75404568,0.00022984,2]
[325250147,1714650631998,-564.74790633,0.000239,2]
[325250149,1714650632008,-341.30888376,0.00026115,2]
[325250150,1714650632017,-1165.44343457,0.00026215,2]
[325250151,1714650632026,-163.14974,0.00027619,2]
[325250152,1714650632036,-177.402833,0.00028493,2]
[325250153,1714650632046,-164.849283,0.00028493,2]
[325250154,1714650632055,-564.74790633,0.000289,2]
[325250156,1714650632064,-247.8,0.00030355,3]
[325250157,1714650632074,-366.080876,0.00032853,2]
[325250158,1714650632083,-199.75404568,0.0003331,2]
[325250159,1714650632092,-189.0935612,0.00033539,2]
[325250160,1714650632102,-722.45030278,0.00035,4]
[325250162,1714650632111,-268.2751311,0.00035616,120]
[325250163,1714650632121,-164.849283,0.00035726,2]
[325250164,1714650632132,-150.0,0.00039765,2]
[325250165,1714650632142,-153.36020492,0.000429,2]
[325250166,1714650632153,-164.849283,0.00042959,2]
[325250167,1714650632162,-150.63,0.00042989,30]
[325250168,1714650632171,-878.71,0.00042989,30]
[325250169,1714650632180,-732.26,0.00042989,30]
[325250170,1714650632190,-610.22,0.00042989,30]
[325250172,1714650632201,-508.52,0.00042989,30]
[325250173,1714650632214,-423.76,0.00042989,30]
[325250174,1714650632223,-353.14,0.00042989,30]
[325250176,1714650632233,-294.28,0.00042989,30]
[325250177,1714650632242,-245.23,0.00042989,30]
[325250178,1714650632251,-204.36,0.00042989,30]
[325250179,1714650632260,-5000.0,0.00042998,4]
[325250180,1714650632271,-38784.57308022,0.00042999,4]
[325250181,1714650632280,-4017.42980359,0.00043,7]
[325250182,1714650632290,-161.0,0.00043,90]
[325250183,1714650632303,-38517.45921092,0.00043,4]
[325250184,1714650632314,-161.0,0.00043014,90]
[325250185,1714650632324,-153.36020488,0.00043085,2]
[325250186,1714650632333,-153.36020488,0.00043269,2]
[325250187,1714650632346,-153.36020488,0.00043454,2]
[325250188,1714650632355,-2000.0,0.000436,2]
[325250189,1714650632365,-199.75404568,0.00043635,2]
[325250190,1714650632375,-153.36020488,0.00043638,2]
[325250191,1714650632384,-3000.0,0.00043698,10]
[325250192,1714650632394,-3000.0,0.00043698,10]
[325250193,1714650632405,-3000.0,0.00043698,10]
[325250194,1714650632414,-1018.59997527,0.00043698,10]
[325250201,1714650637972,-1981.40002473,0.00043698,10]
[325250202,1714650637982,-1092.59698103,0.00043698,10]
[325250205,1714650637994,-1907.40301897,0.00043698,10]
[325250207,1714650638003,-3013.93940082,0.00043698,10]
[325250209,1714650638012,-20695.12518617,0.000437,60]
[325250212,1714650638029,-23846.54056335,0.000437,60]
[325250299,1714650641848,-368.34,0.0004369,30]
[325250300,1714650641859,-168.20428684,0.000437,60]
[325250301,1714650641873,-76166.04751533,0.000437,60]
[325250302,1714650641883,-55555.0,0.00043735,5]
[325250303,1714650641894,-150.72868836,0.00043738,2]
[325250304,1714650641906,-341.3088837,0.00043799,2]
[325250305,1714650641917,-150.5,0.0004381,35]
[325250306,1714650641929,-151.9,0.0004381,35]
[325250307,1714650641944,-214.86,0.0004381,35]
[325250308,1714650641954,-232.92,0.0004381,35]
[325250309,1714650641966,-430.0,0.0004381,35]
[325250310,1714650641976,-150.5,0.0004382,35]
[325250311,1714650641988,-150.5,0.0004382,35]
[325250312,1714650641998,-150.5,0.0004382,35]
[325250313,1714650642009,-239.97,0.0004382,35]
[325250314,1714650642020,-150.5,0.0004382,35]
[325250315,1714650642030,-430.0,0.0004382,35]
[325250316,1714650642040,-286.4305663,0.00043824,4]
[325250317,1714650642050,-182.29,0.0004383,35]
[325250318,1714650642060,-150.5,0.0004383,35]
[325250319,1714650642071,-150.5,0.0004383,35]
[325250320,1714650642081,-150.5,0.0004383,35]
[325250321,1714650642092,-150.5,0.0004383,35]
[325250322,1714650642101,-150.5,0.0004383,35]
[325250323,1714650642111,-430.0,0.0004383,35]
[325250324,1714650642122,-154.79876161,0.00043833,2]
[325250325,1714650642132,-400.0,0.00043833,2]
[325250326,1714650642142,-218.24626309,0.00043833,4]
[325250327,1714650642152,-155.11171458,0.00043833,4]
[325250328,1714650642164,-241.71320654,0.00043833,4]
[325250331,1714650642259,-154.84515485,0.00043833,4]
[325250332,1714650642269,-189.31051559,0.00043833,2]
[325250333,1714650642278,-283.4494848,0.00043833,4]
[325250334,1714650642287,-155.13019217,0.00043833,4]
[325250336,1714650642298,-155.10614473,0.00043833,4]
[325250337,1714650642308,-367.43382635,0.00043833,4]
[325250339,1714650642318,-170.76951357,0.00043833,14]
[325250341,1714650642328,-194.03992112,0.00043833,4]
[325250343,1714650642338,-155.12266003,0.00043833,4]
[325250345,1714650642347,-5241.91549773,0.00043834,4]
[325250346,1714650642357,-500.0,0.00043835,7]
[325250347,1714650642366,-500.0,0.00043835,7]
[325250348,1714650642376,-500.0,0.00043835,7]
[325250349,1714650642386,-500.0,0.00043835,7]
[325250350,1714650642396,-500.0,0.00043835,7]
[325250351,1714650642405,-500.0,0.00043835,7]
[325250352,1714650642414,-500.0,0.00043835,7]
[325250353,1714650642423,-500.0,0.00043835,7]
[325250354,1714650642433,-500.0,0.00043835,7]
[325250355,1714650642442,-500.0,0.00043835,7]
[325250356,1714650642451,-503.42125565,0.00043835,7]
[325250357,1714650642460,-500.0,0.00043835,7]
[325250359,1714650642469,-500.0,0.00043835,7]
[325250361,1714650642478,-500.0,0.00043835,7]
[325250362,1714650642487,-500.0,0.00043835,7]
[325250363,1714650642496,-500.0,0.00043835,7]
[325250364,1714650642505,-995.57,0.00043835,7]
[325250365,1714650642514,-995.57,0.00043835,7]
[325250367,1714650642523,-995.57,0.00043835,7]
[325250368,1714650642532,-995.57,0.00043835,7]
[325250370,1714650642541,-995.57,0.00043835,7]
[325250372,1714650642550,-151.0,0.00043835,7]
[325250374,1714650642559,-500.0,0.00043835,7]
[325250376,1714650642568,-151.0,0.00043835,7]
[325250378,1714650642577,-500.0,0.00043835,7]
[325250379,1714650642586,-221.560432,0.00043835,7]
[325250381,1714650642595,-500.0,0.00043835,7]
[325250382,1714650642604,-500.0,0.00043835,7]
[325250383,1714650642613,-500.0,0.00043835,7]
[325250384,1714650642621,-500.0,0.00043835,7]
[325250385,1714650642630,-500.0,0.00043835,7]
[325250386,1714650642639,-500.0,0.00043835,7]
[325250387,1714650642648,-500.0,0.00043835,7]
[325250388,1714650642657,-500.0,0.00043835,7]
[325250389,1714650642666,-500.0,0.00043835,7]
[325250390,1714650642675,-501.59089126,0.00043835,7]
[325250391,1714650642683,-508.8122228,0.00043835,7]
[325250392,1714650642692,-542.61766218,0.00043835,7]
[325250393,1714650642701,-500.0,0.00043835,7]
[325250394,1714650642710,-539.63177857,0.00043835,7]
[325250395,1714650642719,-500.0,0.00043835,7]
[325250396,1714650642728,-500.0,0.00043835,7]
[325250397,1714650642737,-500.0,0.00043835,7]
[325250398,1714650642746,-500.0,0.00043835,7]
[325250399,1714650642754,-500.0,0.00043835,7]
[325250400,1714650642763,-500.0,0.00043835,7]
[325250401,1714650642771,-648.63035658,0.00043835,7]
[325250402,1714650642780,-506.44857204,0.00043835,7]
[325250403,1714650642789,-500.0,0.00043835,7]
[325250404,1714650642798,-365.37913606,0.00043835,7]
[325250405,1714650642807,-500.0,0.00043835,7]
[325250406,1714650642817,-500.0,0.00043835,7]
[325250407,1714650642827,-500.0,0.00043835,7]